Workbook

Sheet COÛTS DE RÉNOVATION DE SDB
B1: Feuille de calcul des coûts de rénovation de salle de bain
B2: REMARQUE : Les colonnes de différence dans le tableau indiquent si les montants réels ont dépassé les montants estimés. Les nombres en rouge indiquent un montant supérieur au montant estimé (négatif), et les nombres en noir un montant inférieur au montant estimé (positif).
E3: Coût détaillé (€) | H3: Coût total (€)
B4: Superficie | C4: Articles | D4: Quantité | E4: Estimé | F4: Réel | G4: Différence | H4: Estimé | I4: Réel | J4: Différence
B5: Bain/Douche | C5: Baignoire en fonte 150 cm standard | D5: 1 | E5: 250.00 € | F5: =RANDBETWEEN(E5+2,E5+20) -> 254.00 € | G5: =IFERROR(Coûts[[#This Row],[Estimé]]-Coûts[[#This Row],[Réel]], "") -> -4.00 € | H5: =IFERROR(Coûts[[#This Row],[Quantité]]*Coûts[[#This Row],[Estimé]], "") -> 250.00 € | I5: =IFERROR(Coûts[[#This Row],[Quantité]]*Coûts[[#This Row],[Réel]], "") -> 254.00 € | J5: =IFERROR(Coûts[[#This Row],[Estimé ]]-Coûts[[#This Row],[Réel ]], "") -> -4.00 €
B6: Bain/Douche | C6: Portes de douche articulées standard | D6: 1 | E6: 200.00 € | F6: 206.00 € | G6: =IFERROR(Coûts[[#This Row],[Estimé]]-Coûts[[#This Row],[Réel]], "") -> -6.00 € | H6: =IFERROR(Coûts[[#This Row],[Quantité]]*Coûts[[#This Row],[Estimé]], "") -> 200.00 € | I6: =IFERROR(Coûts[[#This Row],[Quantité]]*Coûts[[#This Row],[Réel]], "") -> 206.00 € | J6: =IFERROR(Coûts[[#This Row],[Estimé ]]-Coûts[[#This Row],[Réel ]], "") -> -6.00 €
B7: Bain/Douche | C7: Pomme de douche standard | D7: 1 | E7: 50.00 € | F7: 64.00 € | G7: =IFERROR(Coûts[[#This Row],[Estimé]]-Coûts[[#This Row],[Réel]], "") -> -14.00 € | H7: =IFERROR(Coûts[[#This Row],[Quantité]]*Coûts[[#This Row],[Estimé]], "") -> 50.00 € | I7: =IFERROR(Coûts[[#This Row],[Quantité]]*Coûts[[#This Row],[Réel]], "") -> 64.00 € | J7: =IFERROR(Coûts[[#This Row],[Estimé ]]-Coûts[[#This Row],[Réel ]], "") -> -14.00 €
B8: Bain/Douche | C8: Paroi standard | D8: 1 | E8: 200.00 € | F8: 203.00 € | G8: =IFERROR(Coûts[[#This Row],[Estimé]]-Coûts[[#This Row],[Réel]], "") -> -3.00 € | H8: =IFERROR(Coûts[[#This Row],[Quantité]]*Coûts[[#This Row],[Estimé]], "") -> 200.00 € | I8: =IFERROR(Coûts[[#This Row],[Quantité]]*Coûts[[#This Row],[Réel]], "") -> 203.00 € | J8: =IFERROR(Coûts[[#This Row],[Estimé ]]-Coûts[[#This Row],[Réel ]], "") -> -3.00 €
B9: Meubles de rangement | C9: Armoire à pharmacie 60 cm de luxe | D9: 1 | E9: 200.00 € | F9: 216.00 € | G9: =IFERROR(Coûts[[#This Row],[Estimé]]-Coûts[[#This Row],[Réel]], "") -> -16.00 € | H9: =IFERROR(Coûts[[#This Row],[Quantité]]*Coûts[[#This Row],[Estimé]], "") -> 200.00 € | I9: =IFERROR(Coûts[[#This Row],[Quantité]]*Coûts[[#This Row],[Réel]], "") -> 216.00 € | J9: =IFERROR(Coûts[[#This Row],[Estimé ]]-Coûts[[#This Row],[Réel ]], "") -> -16.00 €
B10: Meubles de rangement | C10: Meuble-lavabo modulaire 70 cm standard | D10: 2 | E10: 100.00 € | F10: 114.00 € | G10: =IFERROR(Coûts[[#This Row],[Estimé]]-Coûts[[#This Row],[Réel]], "") -> -14.00 € | H10: =IFERROR(Coûts[[#This Row],[Quantité]]*Coûts[[#This Row],[Estimé]], "") -> 200.00 € | I10: =IFERROR(Coûts[[#This Row],[Quantité]]*Coûts[[#This Row],[Réel]], "") -> 228.00 € | J10: =IFERROR(Coûts[[#This Row],[Estimé ]]-Coûts[[#This Row],[Réel ]], "") -> -28.00 €
B11: Plans horizontaux | C11: Carrelage en céramique de luxe (en cm linéaires) | D11: 5 | E11: 22.50 € | F11: 37.00 € | G11: =IFERROR(Coûts[[#This Row],[Estimé]]-Coûts[[#This Row],[Réel]], "") -> -14.50 € | H11: =IFERROR(Coûts[[#This Row],[Quantité]]*Coûts[[#This Row],[Estimé]], "") -> 112.50 € | I11: =IFERROR(Coûts[[#This Row],[Quantité]]*Coûts[[#This Row],[Réel]], "") -> 185.00 € | J11: =IFERROR(Coûts[[#This Row],[Estimé ]]-Coûts[[#This Row],[Réel ]], "") -> -72.50 €
B12: Mitigeurs | C12: Mitigeur baignoire standard | D12: 1 | E12: 90.00 € | F12: 102.00 € | G12: =IFERROR(Coûts[[#This Row],[Estimé]]-Coûts[[#This Row],[Réel]], "") -> -12.00 € | H12: =IFERROR(Coûts[[#This Row],[Quantité]]*Coûts[[#This Row],[Estimé]], "") -> 90.00 € | I12: =IFERROR(Coûts[[#This Row],[Quantité]]*Coûts[[#This Row],[Réel]], "") -> 102.00 € | J12: =IFERROR(Coûts[[#This Row],[Estimé ]]-Coûts[[#This Row],[Réel ]], "") -> -12.00 €
B13: Mitigeurs | C13: Mitigeur douche à levier unique standard | D13: 1 | E13: 115.00 € | F13: 131.00 € | G13: =IFERROR(Coûts[[#This Row],[Estimé]]-Coûts[[#This Row],[Réel]], "") -> -16.00 € | H13: =IFERROR(Coûts[[#This Row],[Quantité]]*Coûts[[#This Row],[Estimé]], "") -> 115.00 € | I13: =IFERROR(Coûts[[#This Row],[Quantité]]*Coûts[[#This Row],[Réel]], "") -> 131.00 € | J13: =IFERROR(Coûts[[#This Row],[Estimé ]]-Coûts[[#This Row],[Réel ]], "") -> -16.00 €
B14: Mitigeurs | C14: Mitigeur lavabo standard | D14: 1 | E14: 95.00 € | F14: 102.00 € | G14: =IFERROR(Coûts[[#This Row],[Estimé]]-Coûts[[#This Row],[Réel]], "") -> -7.00 € | H14: =IFERROR(Coûts[[#This Row],[Quantité]]*Coûts[[#This Row],[Estimé]], "") -> 95.00 € | I14: =IFERROR(Coûts[[#This Row],[Quantité]]*Coûts[[#This Row],[Réel]], "") -> 102.00 € | J14: =IFERROR(Coûts[[#This Row],[Estimé ]]-Coûts[[#This Row],[Réel ]], "") -> -7.00 €
B15: Revêtement de sol | C15: Carrelage en céramique standard (en cm linéaires) | D15: 35 | E15: 12.00 € | F15: 18.00 € | G15: =IFERROR(Coûts[[#This Row],[Estimé]]-Coûts[[#This Row],[Réel]], "") -> -6.00 € | H15: =IFERROR(Coûts[[#This Row],[Quantité]]*Coûts[[#This Row],[Estimé]], "") -> 420.00 € | I15: =IFERROR(Coûts[[#This Row],[Quantité]]*Coûts[[#This Row],[Réel]], "") -> 630.00 € | J15: =IFERROR(Coûts[[#This Row],[Estimé ]]-Coûts[[#This Row],[Réel ]], "") -> -210.00 €
B16: Quincaillerie | C16: Barre à serviettes standard | D16: 2 | E16: 15.00 € | F16: 35.00 € | G16: =IFERROR(Coûts[[#This Row],[Estimé]]-Coûts[[#This Row],[Réel]], "") -> -20.00 € | H16: =IFERROR(Coûts[[#This Row],[Quantité]]*Coûts[[#This Row],[Estimé]], "") -> 30.00 € | I16: =IFERROR(Coûts[[#This Row],[Quantité]]*Coûts[[#This Row],[Réel]], "") -> 70.00 € | J16: =IFERROR(Coûts[[#This Row],[Estimé ]]-Coûts[[#This Row],[Réel ]], "") -> -40.00 €
B17: Quincaillerie | C17: Porte-papier hygiénique | D17: 1 | E17: 10.00 € | F17: 19.00 € | G17: =IFERROR(Coûts[[#This Row],[Estimé]]-Coûts[[#This Row],[Réel]], "") -> -9.00 € | H17: =IFERROR(Coûts[[#This Row],[Quantité]]*Coûts[[#This Row],[Estimé]], "") -> 10.00 € | I17: =IFERROR(Coûts[[#This Row],[Quantité]]*Coûts[[#This Row],[Réel]], "") -> 19.00 € | J17: =IFERROR(Coûts[[#This Row],[Estimé ]]-Coûts[[#This Row],[Réel ]], "") -> -9.00 €
B18: Éclairage | C18: Luminaires encastrés standard | D18: 4 | E18: 25.00 € | F18: 39.00 € | G18: =IFERROR(Coûts[[#This Row],[Estimé]]-Coûts[[#This Row],[Réel]], "") -> -14.00 € | H18: =IFERROR(Coûts[[#This Row],[Quantité]]*Coûts[[#This Row],[Estimé]], "") -> 100.00 € | I18: =IFERROR(Coûts[[#This Row],[Quantité]]*Coûts[[#This Row],[Réel]], "") -> 156.00 € | J18: =IFERROR(Coûts[[#This Row],[Estimé ]]-Coûts[[#This Row],[Réel ]], "") -> -56.00 €
B19: Éviers | C19: WC standard | D19: 2 | E19: 60.00 € | F19: 76.00 € | G19: =IFERROR(Coûts[[#This Row],[Estimé]]-Coûts[[#This Row],[Réel]], "") -> -16.00 € | H19: =IFERROR(Coûts[[#This Row],[Quantité]]*Coûts[[#This Row],[Estimé]], "") -> 120.00 € | I19: =IFERROR(Coûts[[#This Row],[Quantité]]*Coûts[[#This Row],[Réel]], "") -> 152.00 € | J19: =IFERROR(Coûts[[#This Row],[Estimé ]]-Coûts[[#This Row],[Réel ]], "") -> -32.00 €
B20: Autres | D20: 1 | E20: 20.00 € | F20: 25.00 € | G20: =IFERROR(Coûts[[#This Row],[Estimé]]-Coûts[[#This Row],[Réel]], "") -> -5.00 € | H20: =IFERROR(Coûts[[#This Row],[Quantité]]*Coûts[[#This Row],[Estimé]], "") -> 20.00 € | I20: =IFERROR(Coûts[[#This Row],[Quantité]]*Coûts[[#This Row],[Réel]], "") -> 25.00 € | J20: =IFERROR(Coûts[[#This Row],[Estimé ]]-Coûts[[#This Row],[Réel ]], "") -> -5.00 €
B21: Sous-total | E21: =SUBTOTAL(109,Coûts[Estimé]) -> 1,464.50 € | F21: =SUBTOTAL(109,Coûts[Réel]) -> 1,641.00 € | G21: =SUBTOTAL(109,Coûts[Différence]) -> -176.50 € | H21: =SUBTOTAL(109,Coûts[[Estimé ]]) -> 2,212.50 € | I21: =SUBTOTAL(109,Coûts[[Réel ]]) -> 2,743.00 € | J21: =SUBTOTAL(109,Coûts[[Différence ]]) -> -530.50 €
B23: Frais imprévus (ajouter 30 % estimés) | E23: =IFERROR(Coûts[[#Totals],[Estimé]]*0.3, "") -> 439.35 € | H23: =IFERROR(Coûts[[#Totals],[Estimé ]]*0.3, "") -> 663.75 €
B24: Total des coûts | E24: =IFERROR(SUM(E21:E21), "") -> 1,464.50 € | H24: =IFERROR(SUM(Coûts[[#Totals],[Estimé ]],Dépassement), "") -> 2,876.25 €
